[Event "Live Chess"]
[Site "Chess.com"]
[Date "2024.06.01"]
[Round "-"]
[White "vincents82"]
[Black "Crowded_House"]
[Result "1-0"]
[WhiteElo "2137"]
[BlackElo "1736"]
[TimeControl "300"]
[EndTime "9:42:53 PDT"]
[Termination "vincents82 won by resignation"]

1. e4 {[%clk 0:04:52.6]} 1... e6 {[%clk 0:04:57.3]} 2. d4 {[%clk 0:04:51.5]}
2... d5 {[%clk 0:04:57]} 3. Nd2 {[%clk 0:04:49.6]} 3... dxe4 {[%clk 0:04:55.5]}
4. Nxe4 {[%clk 0:04:48.9]} 4... Bd7 {[%clk 0:04:55]} 5. Nf3 {[%clk 0:04:47.4]}
5... Bc6 {[%clk 0:04:54.7]} 6. Bd3 {[%clk 0:04:46.2]} 6... Nd7 {[%clk
0:04:53.1]} 7. O-O {[%clk 0:04:45.1]} 7... Ngf6 {[%clk 0:04:52.4]} 8. Nxf6+
{[%clk 0:04:43.8]} 8... Qxf6 {[%clk 0:04:50.9]} 9. c3 {[%clk 0:04:43.4]} 9... h6
{[%clk 0:04:45.8]} 10. Nd2 {[%clk 0:04:26.6]} 10... Bd6 {[%clk 0:04:43.8]} 11.
Ne4 {[%clk 0:04:21.7]} 11... Bxe4 {[%clk 0:04:37.6]} 12. Bxe4 {[%clk 0:04:20.5]}
12... c6 {[%clk 0:04:37]} 13. Qf3 {[%clk 0:04:15.6]} 13... Qxf3 {[%clk
0:04:35.1]} 14. Bxf3 {[%clk 0:04:14.8]} 14... O-O {[%clk 0:04:33.7]} 15. Be3
{[%clk 0:04:11.8]} 15... Nf6 {[%clk 0:04:30.5]} 16. a4 {[%clk 0:04:09.9]} 16...
Nd5 {[%clk 0:04:29.4]} 17. Bd2 {[%clk 0:04:06.4]} 17... Rfe8 {[%clk 0:04:26.5]}
18. g3 {[%clk 0:04:05.4]} 18... Rad8 {[%clk 0:04:16.6]} 19. a5 {[%clk
0:04:03.3]} 19... a6 {[%clk 0:04:15]} 20. Rfe1 {[%clk 0:04:00.4]} 20... Nf6
{[%clk 0:04:05.5]} 21. Be3 {[%clk 0:03:55.8]} 21... Nd5 {[%clk 0:04:02.7]} 22.
c4 {[%clk 0:03:53.5]} 22... Nxe3 {[%clk 0:04:01.4]} 23. fxe3 {[%clk 0:03:52.6]}
23... Bc7 {[%clk 0:03:56.5]} 24. Red1 {[%clk 0:03:51.3]} 24... Rd7 {[%clk
0:03:46.8]} 25. b4 {[%clk 0:03:49]} 25... Rde7 {[%clk 0:03:44.7]} 26. b5 {[%clk
0:03:46.7]} 26... axb5 {[%clk 0:03:42.8]} 27. cxb5 {[%clk 0:03:45.4]} 27... cxb5
{[%clk 0:03:39.7]} 28. Bxb7 {[%clk 0:03:43.7]} 28... Bxg3 {[%clk 0:03:37.7]} 29.
a6 {[%clk 0:03:34.9]} 29... Bb8 {[%clk 0:03:33.1]} 30. Rdb1 {[%clk 0:03:22.4]}
30... Ba7 {[%clk 0:03:20.4]} 31. Rxb5 {[%clk 0:03:20.6]} 31... Rc7 {[%clk
0:03:19.4]} 32. Rab1 {[%clk 0:03:14.2]} 32... Rd8 {[%clk 0:03:13.8]} 33. Be4
{[%clk 0:03:04.4]} 33... Rc3 {[%clk 0:03:00.1]} 34. R5b3 {[%clk 0:02:57.9]}
34... Rdc8 {[%clk 0:02:55.6]} 35. Rxc3 {[%clk 0:02:53.1]} 35... Rxc3 {[%clk
0:02:53.7]} 36. Rb7 {[%clk 0:02:47.8]} 36... Rxe3 {[%clk 0:02:39.2]} 37. Rxa7
{[%clk 0:02:46.4]} 37... Rxe4 {[%clk 0:02:38.7]} 38. Rb7 {[%clk 0:02:41.6]}
38... Rxd4 {[%clk 0:02:33.6]} 39. a7 {[%clk 0:02:40.4]} 39... Rd1+ {[%clk
0:02:28.9]} 40. Kf2 {[%clk 0:02:39.5]} 40... Ra1 {[%clk 0:02:28.5]} 41. Rb8+
{[%clk 0:02:37.3]} 41... Kh7 {[%clk 0:02:26.3]} 42. a8=Q {[%clk 0:02:35.7]} 1-0

[Event "Live Chess"]
[Site "Chess.com"]
[Date "2024.06.01"]
[Round "-"]
[White "Grieve72"]
[Black "gmnorfolk"]
[Result "1-0"]
[WhiteElo "2637"]
[BlackElo "2106"]
[TimeControl "300"]
[EndTime "9:42:59 PDT"]
[Termination "Grieve72 won by resignation"]

1. d4 {[%clk 0:04:57.9]} 1... Nf6 {[%clk 0:04:58.5]} 2. Nf3 {[%clk 0:04:57.4]}
2... g6 {[%clk 0:04:56.8]} 3. Bg5 {[%clk 0:04:54.9]} 3... Bg7 {[%clk 0:04:55.8]}
4. Nbd2 {[%clk 0:04:54.6]} 4... d6 {[%clk 0:04:45.6]} 5. e4 {[%clk 0:04:53.7]}
5... h6 {[%clk 0:04:44.1]} 6. Bh4 {[%clk 0:04:51.2]} 6... Nbd7 {[%clk
0:04:42.6]} 7. e5 {[%clk 0:04:48.3]} 7... dxe5 {[%clk 0:04:40.2]} 8. dxe5 {[%clk
0:04:48.2]} 8... Nd5 {[%clk 0:04:35.3]} 9. e6 {[%clk 0:04:40.7]} 9... fxe6
{[%clk 0:04:33.8]} 10. c3 {[%clk 0:04:32]} 10... N7f6 {[%clk 0:04:22.3]} 11. Qc2
{[%clk 0:04:29.6]} 11... g5 {[%clk 0:04:13.3]} 12. Ne5 {[%clk 0:04:22.6]} 12...
O-O {[%clk 0:03:47]} 13. Bg3 {[%clk 0:04:21.4]} 13... Nh5 {[%clk 0:03:38.6]} 14.
Ng6 {[%clk 0:04:05.7]} 14... Nxg3 {[%clk 0:03:32.3]} 15. hxg3 {[%clk 0:04:03.4]}
15... Rf6 {[%clk 0:03:29.7]} 16. Bd3 {[%clk 0:03:58]} 16... Bd7 {[%clk
0:03:07.9]} 17. O-O-O {[%clk 0:03:52.6]} 17... Be8 {[%clk 0:02:56.8]} 18. Ne5
{[%clk 0:03:48.2]} 18... Rxf2 {[%clk 0:02:51.7]} 19. Ng4 {[%clk 0:03:47]} 19...
Rf6 {[%clk 0:02:29.5]} 20. Ne4 {[%clk 0:03:40.5]} 20... Qc8 {[%clk 0:02:04.9]}
21. Nexf6+ {[%clk 0:03:38]} 21... exf6 {[%clk 0:01:58.5]} 22. Nxh6+ {[%clk
0:03:37.4]} 22... Kf8 {[%clk 0:01:57.6]} 23. Qf2 {[%clk 0:03:30.9]} 23... c5
{[%clk 0:01:20.9]} 24. c4 {[%clk 0:03:24.6]} 24... Nb4 {[%clk 0:01:16.1]} 25.
Ng4 {[%clk 0:03:15.7]} 25... Nxd3+ {[%clk 0:01:11.3]} 26. Rxd3 {[%clk
0:03:14.7]} 26... Bg6 {[%clk 0:01:07.8]} 27. Re3 {[%clk 0:02:56.3]} 27... Qd8
{[%clk 0:00:40.6]} 28. Rxe6 {[%clk 0:02:30.9]} 28... Qd3 {[%clk 0:00:28.2]} 29.
Rxf6+ {[%clk 0:02:30.3]} 29... Kg8 {[%clk 0:00:19.6]} 30. Rxg6 {[%clk
0:02:02.3]} 30... Qxg6 {[%clk 0:00:17]} 31. Qf3 {[%clk 0:01:56.5]} 31... Rd8
{[%clk 0:00:14.7]} 32. Rd1 {[%clk 0:01:41.9]} 32... Rxd1+ {[%clk 0:00:12.7]} 33.
Qxd1 {[%clk 0:01:41.8]} 33... Qf5 {[%clk 0:00:11.5]} 34. Qd5+ {[%clk 0:01:39.8]}
34... Qxd5 {[%clk 0:00:09.6]} 35. cxd5 {[%clk 0:01:39.7]} 35... Be5 {[%clk
0:00:07.8]} 36. Nxe5 {[%clk 0:01:38.7]} 1-0

[Event "Live Chess"]
[Site "Chess.com"]
[Date "2024.06.01"]
[Round "-"]
[White "KyryloPoluliakh"]
[Black "Mangoalo"]
[Result "1/2-1/2"]
[WhiteElo "1457"]
[BlackElo "995"]
[TimeControl "300"]
[EndTime "9:43:12 PDT"]
[Termination "Game drawn by repetition"]

1. c4 {[%clk 0:04:55.4]} 1... Nf6 {[%clk 0:04:58.1]} 2. Nc3 {[%clk 0:04:53.6]}
2... e6 {[%clk 0:04:57.5]} 3. g3 {[%clk 0:04:52.7]} 3... Bb4 {[%clk 0:04:56.6]}
4. Bg2 {[%clk 0:04:49.1]} 4... O-O {[%clk 0:04:56.1]} 5. e3 {[%clk 0:04:47.4]}
5... Re8 {[%clk 0:04:49.5]} 6. Nge2 {[%clk 0:04:45]} 6... d5 {[%clk 0:04:36.1]}
7. cxd5 {[%clk 0:04:42.2]} 7... exd5 {[%clk 0:04:36]} 8. d4 {[%clk 0:04:40.7]}
8... c5 {[%clk 0:04:33.4]} 9. O-O {[%clk 0:04:36.5]} 9... cxd4 {[%clk
0:04:32.6]} 10. Nxd4 {[%clk 0:04:33.2]} 10... Nc6 {[%clk 0:04:29.7]} 11. Nc2
{[%clk 0:04:28.8]} 11... Bxc3 {[%clk 0:04:28.3]} 12. bxc3 {[%clk 0:04:27.5]}
12... Bg4 {[%clk 0:04:24.7]} 13. Qd2 {[%clk 0:04:14.7]} 13... Ne5 {[%clk
0:04:14.6]} 14. Nd4 {[%clk 0:04:08.1]} 14... Ne4 {[%clk 0:04:09.9]} 15. Qc2
{[%clk 0:04:04.5]} 15... Nxg3 {[%clk 0:03:59.4]} 16. hxg3 {[%clk 0:03:54.3]}
16... Qf6 {[%clk 0:03:58]} 17. Bxd5 {[%clk 0:03:34.3]} 17... Nf3+ {[%clk
0:03:47.6]} 18. Bxf3 {[%clk 0:03:28.8]} 18... Bxf3 {[%clk 0:03:47.5]} 19. Nxf3
{[%clk 0:03:26.5]} 19... Qxf3 {[%clk 0:03:47.4]} 20. Qd1 {[%clk 0:03:19.6]}
20... Qc6 {[%clk 0:03:41.3]} 21. f4 {[%clk 0:03:09.1]} 21... Rad8 {[%clk
0:03:40.2]} 22. Qf3 {[%clk 0:03:05.7]} 22... Qc5 {[%clk 0:03:27.3]} 23. Kg2
{[%clk 0:02:54.2]} 23... Re6 {[%clk 0:03:18.7]} 24. Rf2 {[%clk 0:02:49.2]} 24...
Rf6 {[%clk 0:03:17.3]} 25. Re2 {[%clk 0:02:43.6]} 25... g5 {[%clk 0:03:15.4]}
26. Qg4 {[%clk 0:02:37.4]} 26... Qc6+ {[%clk 0:03:09.9]} 27. Kf2 {[%clk
0:02:33]} 27... h6 {[%clk 0:03:07.3]} 28. Bb2 {[%clk 0:02:24.8]} 28... Kh7
{[%clk 0:02:50.4]} 29. c4 {[%clk 0:02:21.4]} 29... gxf4 {[%clk 0:02:48.8]} 30.
Bxf6 {[%clk 0:02:15.3]} 30... fxe3+ {[%clk 0:02:45.7]} 31. Rxe3 {[%clk
0:02:12.1]} 31... Rd2+ {[%clk 0:02:43.5]} 32. Re2 {[%clk 0:02:06.5]} 32... Qxf6+
{[%clk 0:02:42.1]} 33. Qf3 {[%clk 0:01:58.8]} 33... Rxe2+ {[%clk 0:02:27.9]} 34.
Kxe2 {[%clk 0:01:56]} 34... Qxa1 {[%clk 0:02:27.8]} 35. Qxf7+ {[%clk 0:01:54.2]}
35... Kh8 {[%clk 0:02:25]} 36. Qxb7 {[%clk 0:01:52]} 36... Qxa2+ {[%clk
0:02:22.6]} 37. Ke3 {[%clk 0:01:47.6]} 37... Qxc4 {[%clk 0:02:21.1]} 38. Qxa7
{[%clk 0:01:43.6]} 38... Qe6+ {[%clk 0:02:11.6]} 39. Kf3 {[%clk 0:01:40.7]}
39... Qf5+ {[%clk 0:02:08.5]} 40. Kg2 {[%clk 0:01:38.9]} 40... Qc2+ {[%clk
0:02:05.6]} 41. Kh3 {[%clk 0:01:36.9]} 41... Qf5+ {[%clk 0:02:03.9]} 42. g4
{[%clk 0:01:33.9]} 42... Qf3+ {[%clk 0:02:01.3]} 43. Kh4 {[%clk 0:01:28.5]}
43... Qf6+ {[%clk 0:02:00.1]} 44. Kg3 {[%clk 0:01:26.2]} 44... Qe5+ {[%clk
0:01:56.3]} 45. Kg2 {[%clk 0:01:24.8]} 45... Qe4+ {[%clk 0:01:54.6]} 46. Kh3
{[%clk 0:01:21]} 46... Qf3+ {[%clk 0:01:51]} 47. Kh4 {[%clk 0:01:19.5]} 47...
Qf6+ {[%clk 0:01:50]} 48. Kg3 {[%clk 0:01:16.7]} 48... Qe5+ {[%clk 0:01:47.8]}
49. Kf3 {[%clk 0:01:13.7]} 49... Qf6+ {[%clk 0:01:44.7]} 50. Kg3 {[%clk
0:01:13]} 1/2-1/2

[Event "Live Chess"]
[Site "Chess.com"]
[Date "2024.06.01"]
[Round "-"]
[White "Tatarinov_Maxim"]
[Black "Pizzaman313"]
[Result "1-0"]
[WhiteElo "2292"]
[BlackElo "1194"]
[TimeControl "300"]
[EndTime "9:43:17 PDT"]
[Termination "Tatarinov_Maxim won by resignation"]

1. Nf3 {[%clk 0:04:56.6]} 1... Nc6 {[%clk 0:04:56.8]} 2. g3 {[%clk 0:04:54.5]}
2... d5 {[%clk 0:04:54]} 3. d3 {[%clk 0:04:53.8]} 3... Bg4 {[%clk 0:04:47.3]} 4.
Bg2 {[%clk 0:04:53.1]} 4... e6 {[%clk 0:04:46.4]} 5. O-O {[%clk 0:04:51.6]} 5...
Nf6 {[%clk 0:04:42.4]} 6. c4 {[%clk 0:04:50.1]} 6... Be7 {[%clk 0:04:40.3]} 7.
cxd5 {[%clk 0:04:47.7]} 7... exd5 {[%clk 0:04:40.2]} 8. Nc3 {[%clk 0:04:46.5]}
8... O-O {[%clk 0:04:38.1]} 9. Bf4 {[%clk 0:04:44.7]} 9... Bxf3 {[%clk
0:04:35.9]} 10. Bxf3 {[%clk 0:04:41.9]} 10... Nd4 {[%clk 0:04:19.1]} 11. Bg2
{[%clk 0:04:39.4]} 11... c6 {[%clk 0:04:15.5]} 12. Qa4 {[%clk 0:04:19.5]} 12...
Ne6 {[%clk 0:04:11.9]} 13. Bd2 {[%clk 0:04:18.4]} 13... d4 {[%clk 0:03:48.5]}
14. Ne4 {[%clk 0:04:16]} 14... Nxe4 {[%clk 0:03:46.5]} 15. Bxe4 {[%clk
0:04:15.9]} 15... Nc5 {[%clk 0:03:31.5]} 16. Qc2 {[%clk 0:04:09.2]} 16... Nxe4
{[%clk 0:03:28.6]} 17. dxe4 {[%clk 0:04:09.1]} 17... Bf6 {[%clk 0:03:27]} 18.
Rfd1 {[%clk 0:04:07.5]} 18... Qe7 {[%clk 0:03:15.4]} 19. a3 {[%clk 0:04:03.6]}
19... Rfe8 {[%clk 0:03:13.2]} 20. f3 {[%clk 0:04:00.8]} 20... Rad8 {[%clk
0:03:07.2]} 21. Rac1 {[%clk 0:03:58.2]} 21... Qc7 {[%clk 0:02:48]} 22. Kg2
{[%clk 0:03:53.2]} 22... Qb6 {[%clk 0:02:32.3]} 23. b4 {[%clk 0:03:47]} 23...
Qa6 {[%clk 0:02:26.8]} 24. Qd3 {[%clk 0:03:36.9]} 24... Qa4 {[%clk 0:02:01.3]}
25. Bf4 {[%clk 0:03:27.8]} 25... h6 {[%clk 0:01:46.5]} 26. Rc5 {[%clk
0:03:19.8]} 26... b6 {[%clk 0:01:27]} 27. Rc4 {[%clk 0:03:15]} 27... g5 {[%clk
0:01:16.3]} 28. Bc1 {[%clk 0:03:08.4]} 28... a5 {[%clk 0:01:03.7]} 29. Bb2
{[%clk 0:02:56.7]} 29... axb4 {[%clk 0:00:58.4]} 30. Rxb4 {[%clk 0:02:53.8]}
30... Qa7 {[%clk 0:00:45]} 31. Qb3 {[%clk 0:02:39.7]} 31... Rb8 {[%clk
0:00:26.4]} 32. Bxd4 {[%clk 0:02:23.6]} 32... Bxd4 {[%clk 0:00:22.2]} 33. Rbxd4
{[%clk 0:02:21.9]} 33... Ra8 {[%clk 0:00:18.2]} 34. Rd7 {[%clk 0:02:19.8]} 1-0

[Event "Live Chess"]
[Site "Chess.com"]
[Date "2024.06.01"]
[Round "-"]
[White "Berdgross"]
[Black "Nathaniel250"]
[Result "0-1"]
[WhiteElo "579"]
[BlackElo "1470"]
[TimeControl "300"]
[EndTime "9:43:23 PDT"]
[Termination "Nathaniel250 won by resignation"]

1. e4 {[%clk 0:04:54.6]} 1... c5 {[%clk 0:04:58.4]} 2. d3 {[%clk 0:04:54.5]}
2... e6 {[%clk 0:04:56.1]} 3. Nf3 {[%clk 0:04:54.4]} 3... d5 {[%clk 0:04:55]} 4.
exd5 {[%clk 0:04:52.7]} 4... exd5 {[%clk 0:04:54.9]} 5. Qe2+ {[%clk 0:04:51]}
5... Be6 {[%clk 0:04:48.6]} 6. Nc3 {[%clk 0:04:47.4]} 6... Be7 {[%clk
0:04:44.8]} 7. Bg5 {[%clk 0:04:41]} 7... Bxg5 {[%clk 0:04:41.8]} 8. Nxg5 {[%clk
0:04:39.8]} 8... Qxg5 {[%clk 0:04:40.7]} 9. h4 {[%clk 0:04:25.8]} 9... Qd8
{[%clk 0:04:33.2]} 10. O-O-O {[%clk 0:04:18.5]} 10... Nf6 {[%clk 0:04:30.5]} 11.
Re1 {[%clk 0:04:16.2]} 11... O-O {[%clk 0:04:29.2]} 12. f3 {[%clk 0:04:05.1]}
12... Nc6 {[%clk 0:04:26.2]} 13. d4 {[%clk 0:04:02.9]} 13... cxd4 {[%clk
0:04:24.7]} 14. Nb5 {[%clk 0:04:00.1]} 14... Re8 {[%clk 0:04:16.8]} 15. Qf2
{[%clk 0:03:49.8]} 15... a6 {[%clk 0:04:13.2]} 16. Nxd4 {[%clk 0:03:48.3]} 16...
Nxd4 {[%clk 0:04:12.3]} 17. Qxd4 {[%clk 0:03:45.8]} 17... Bf5 {[%clk 0:04:04.6]}
18. Rxe8+ {[%clk 0:03:41.3]} 18... Qxe8 {[%clk 0:04:04.5]} 19. Bd3 {[%clk
0:03:34.8]} 19... Bxd3 {[%clk 0:04:01.6]} 20. cxd3 {[%clk 0:03:32.9]} 20... Rc8+
{[%clk 0:04:00.4]} 21. Kd2 {[%clk 0:03:30.9]} 21... Qc6 {[%clk 0:03:56.9]} 22.
Qe3 {[%clk 0:03:17.9]} 22... Qc2+ {[%clk 0:03:50.8]} 23. Ke1 {[%clk 0:03:15.1]}
23... Qc1+ {[%clk 0:03:47.6]} 24. Qxc1 {[%clk 0:03:11.1]} 24... Rxc1+ {[%clk
0:03:47.5]} 25. Kf2 {[%clk 0:03:06.4]} 25... Rxh1 {[%clk 0:03:47.4]} 0-1

[Event "Live Chess"]
[Site "Chess.com"]
[Date "2024.06.01"]
[Round "-"]
[White "Pedrada88"]
[Black "Keithdfg"]
[Result "1-0"]
[WhiteElo "2552"]
[BlackElo "1731"]
[TimeControl "300"]
[EndTime "9:43:33 PDT"]
[Termination "Pedrada88 won by resignation"]

1. e4 {[%clk 0:04:48.5]} 1... d6 {[%clk 0:04:55.7]} 2. Nf3 {[%clk 0:04:47.6]}
2... Nf6 {[%clk 0:04:55.4]} 3. Nc3 {[%clk 0:04:46.1]} 3... e5 {[%clk 0:04:54.2]}
4. Bc4 {[%clk 0:04:44.4]} 4... h6 {[%clk 0:04:52.4]} 5. d4 {[%clk 0:04:42.7]}
5... Nbd7 {[%clk 0:04:51.6]} 6. O-O {[%clk 0:04:41.2]} 6... Be7 {[%clk
0:04:49.3]} 7. Re1 {[%clk 0:04:37.9]} 7... c6 {[%clk 0:04:46.9]} 8. a4 {[%clk
0:04:35.8]} 8... a5 {[%clk 0:04:45.1]} 9. dxe5 {[%clk 0:04:34.2]} 9... Nxe5
{[%clk 0:04:43.5]} 10. Nxe5 {[%clk 0:04:32.8]} 10... dxe5 {[%clk 0:04:42.8]} 11.
Qxd8+ {[%clk 0:04:26.9]} 11... Bxd8 {[%clk 0:04:41.6]} 12. Be3 {[%clk
0:04:26.5]} 12... Bc7 {[%clk 0:04:40]} 13. Bc5 {[%clk 0:04:24.4]} 13... Be6
{[%clk 0:04:38.9]} 14. Bxe6 {[%clk 0:04:22.7]} 14... fxe6 {[%clk 0:04:38.1]} 15.
Rad1 {[%clk 0:04:21.2]} 15... Kf7 {[%clk 0:04:33]} 16. f3 {[%clk 0:04:20.3]}
16... Rhd8 {[%clk 0:04:29.9]} 17. Kf2 {[%clk 0:04:19.6]} 17... Nd7 {[%clk
0:04:21.2]} 18. Be3 {[%clk 0:04:12.9]} 18... Nb6 {[%clk 0:04:15.7]} 19. b3
{[%clk 0:04:09.8]} 19... Ke8 {[%clk 0:04:00.3]} 20. Bc5 {[%clk 0:04:03.2]} 20...
Nd7 {[%clk 0:03:57.8]} 21. Be3 {[%clk 0:04:00.8]} 21... Nb6 {[%clk 0:03:46.1]}
22. g4 {[%clk 0:03:59.9]} 22... Kf7 {[%clk 0:03:42.2]} 23. h4 {[%clk 0:03:58.3]}
23... Rxd1 {[%clk 0:03:35.8]} 24. Nxd1 {[%clk 0:03:56.1]} 24... Rd8 {[%clk
0:03:35.3]} 25. Nb2 {[%clk 0:03:55.2]} 25... Nd7 {[%clk 0:03:31.4]} 26. Nc4
{[%clk 0:03:53.6]} 26... Nb8 {[%clk 0:03:23.8]} 27. Bd2 {[%clk 0:03:40.7]} 27...
b6 {[%clk 0:03:22.3]} 28. Bc3 {[%clk 0:03:39.1]} 28... Nd7 {[%clk 0:03:12.9]}
29. Rd1 {[%clk 0:03:38.4]} 29... Ke7 {[%clk 0:03:04.7]} 30. g5 {[%clk
0:03:33.7]} 30... h5 {[%clk 0:03:02.1]} 31. Ke3 {[%clk 0:03:26.1]} 31... g6
{[%clk 0:03:00.8]} 32. Bb2 {[%clk 0:03:20.9]} 32... Ra8 {[%clk 0:02:49.4]} 33.
Ba3+ {[%clk 0:03:17.2]} 33... c5 {[%clk 0:02:45.7]} 34. Bb2 {[%clk 0:03:15.6]}
34... Rf8 {[%clk 0:02:37.6]} 35. Na3 {[%clk 0:03:13.2]} 35... Rf4 {[%clk
0:02:34.6]} 36. Nb5 {[%clk 0:03:09.9]} 36... Bb8 {[%clk 0:02:32.8]} 37. Rh1
{[%clk 0:03:08.5]} 37... Nf8 {[%clk 0:02:25.1]} 38. Ke2 {[%clk 0:03:05]} 38...
Rf7 {[%clk 0:02:17.4]} 39. Bc1 {[%clk 0:02:58.6]} 39... Kd8 {[%clk 0:02:13.5]}
40. Be3 {[%clk 0:02:53.2]} 40... Rd7 {[%clk 0:02:10.7]} 41. Rf1 {[%clk
0:02:51.6]} 41... Ke7 {[%clk 0:02:05]} 42. f4 {[%clk 0:02:49.1]} 42... exf4
{[%clk 0:02:04]} 43. Bxf4 {[%clk 0:02:49]} 43... e5 {[%clk 0:02:02]} 44. Bd2
{[%clk 0:02:46.2]} 44... Ne6 {[%clk 0:01:42.5]} 45. Rf6 {[%clk 0:02:45.1]} 1-0

[Event "Live Chess"]
[Site "Chess.com"]
[Date "2024.06.01"]
[Round "-"]
[White "SirGerhard"]
[Black "halfberg"]
[Result "1-0"]
[WhiteElo "2760"]
[BlackElo "1903"]
[TimeControl "300"]
[EndTime "9:43:37 PDT"]
[Termination "SirGerhard won by checkmate"]

1. e4 {[%clk 0:04:58.5]} 1... c5 {[%clk 0:04:56.1]} 2. Nc3 {[%clk 0:04:57.4]}
2... Nc6 {[%clk 0:04:54.6]} 3. Bb5 {[%clk 0:04:56.3]} 3... Nd4 {[%clk
0:04:50.7]} 4. Bc4 {[%clk 0:04:55.3]} 4... e6 {[%clk 0:04:49]} 5. Nge2 {[%clk
0:04:54.1]} 5... Nxe2 {[%clk 0:04:46.2]} 6. Qxe2 {[%clk 0:04:53.2]} 6... a6
{[%clk 0:04:45.8]} 7. a4 {[%clk 0:04:50.1]} 7... g6 {[%clk 0:04:38.5]} 8. O-O
{[%clk 0:04:48.3]} 8... Bg7 {[%clk 0:04:37.7]} 9. d3 {[%clk 0:04:42.2]} 9... Ne7
{[%clk 0:04:36.4]} 10. a5 {[%clk 0:04:33.2]} 10... O-O {[%clk 0:04:30.6]} 11.
Be3 {[%clk 0:04:32]} 11... Qc7 {[%clk 0:04:27.8]} 12. f4 {[%clk 0:04:27]} 12...
d6 {[%clk 0:04:17.2]} 13. Qf2 {[%clk 0:04:21.9]} 13... Bd7 {[%clk 0:04:11.3]}
14. e5 {[%clk 0:04:15]} 14... Rfc8 {[%clk 0:03:59.1]} 15. exd6 {[%clk
0:04:13.7]} 15... Qxd6 {[%clk 0:03:57.7]} 16. Ne4 {[%clk 0:04:13]} 16... Qc7
{[%clk 0:03:53.2]} 17. Bxc5 {[%clk 0:04:12]} 17... Bc6 {[%clk 0:03:45.6]} 18.
Bb6 {[%clk 0:04:07.5]} 18... Qd7 {[%clk 0:03:41.3]} 19. Nc5 {[%clk 0:03:56]}
19... Qe8 {[%clk 0:03:13.2]} 20. c3 {[%clk 0:03:49.5]} 20... Nd5 {[%clk
0:03:08.3]} 21. d4 {[%clk 0:03:48.5]} 21... Nxb6 {[%clk 0:03:05]} 22. axb6
{[%clk 0:03:47.8]} 22... Qe7 {[%clk 0:02:54.8]} 23. Rfe1 {[%clk 0:03:45.5]}
23... Qd6 {[%clk 0:02:43.2]} 24. Nxe6 {[%clk 0:03:43]} 24... fxe6 {[%clk
0:02:38.7]} 25. Rxe6 {[%clk 0:03:42.2]} 25... Qb8 {[%clk 0:02:14.9]} 26. Re8#
{[%clk 0:03:39.5]} 1-0

[Event "Live Chess"]
[Site "Chess.com"]
[Date "2024.06.01"]
[Round "-"]
[White "raimundklein"]
[Black "TheSmoulderingMaster"]
[Result "0-1"]
[WhiteElo "1574"]
[BlackElo "1747"]
[TimeControl "300"]
[EndTime "9:43:40 PDT"]
[Termination "TheSmoulderingMaster won by resignation"]

1. e4 {[%clk 0:04:57.9]} 1... c5 {[%clk 0:04:57.8]} 2. Nf3 {[%clk 0:04:56.5]}
2... d6 {[%clk 0:04:57.1]} 3. c3 {[%clk 0:04:47.1]} 3... Nc6 {[%clk 0:04:55.6]}
4. d4 {[%clk 0:04:44]} 4... cxd4 {[%clk 0:04:52.8]} 5. cxd4 {[%clk 0:04:43.9]}
5... Nf6 {[%clk 0:04:51.5]} 6. Nc3 {[%clk 0:04:41.8]} 6... g6 {[%clk 0:04:50.4]}
7. Bb5 {[%clk 0:04:38]} 7... Bd7 {[%clk 0:04:49]} 8. O-O {[%clk 0:04:35.8]} 8...
Bg7 {[%clk 0:04:47.7]} 9. h3 {[%clk 0:04:32.2]} 9... O-O {[%clk 0:04:46.5]} 10.
Be3 {[%clk 0:04:30]} 10... a6 {[%clk 0:04:45.5]} 11. Be2 {[%clk 0:04:25.5]}
11... b5 {[%clk 0:04:42]} 12. a3 {[%clk 0:04:22.2]} 12... Rb8 {[%clk 0:04:39.5]}
13. Qd2 {[%clk 0:04:20.1]} 13... Na5 {[%clk 0:04:32.8]} 14. Rae1 {[%clk
0:03:55.9]} 14... Rc8 {[%clk 0:04:26.3]} 15. Bh6 {[%clk 0:03:49.6]} 15... Nc4
{[%clk 0:04:24]} 16. Qg5 {[%clk 0:03:38.4]} 16... Nxb2 {[%clk 0:04:16.2]} 17.
Bxg7 {[%clk 0:03:36.2]} 17... Kxg7 {[%clk 0:04:15.4]} 18. e5 {[%clk 0:03:32.9]}
18... dxe5 {[%clk 0:04:10.5]} 19. dxe5 {[%clk 0:03:32.3]} 19... Nh5 {[%clk
0:04:09.2]} 20. Ne4 {[%clk 0:03:27]} 20... Bc6 {[%clk 0:04:00.2]} 21. Nfd2
{[%clk 0:03:12.3]} 21... Nc4 {[%clk 0:03:54.3]} 22. g4 {[%clk 0:03:05.8]} 22...
f6 {[%clk 0:03:46.9]} 23. exf6+ {[%clk 0:03:04.2]} 23... exf6 {[%clk 0:03:46.1]}
24. Qh4 {[%clk 0:02:41.9]} 24... Nxd2 {[%clk 0:03:40.4]} 25. Nxd2 {[%clk
0:02:35.5]} 25... Qxd2 {[%clk 0:03:38.7]} 26. gxh5 {[%clk 0:02:34]} 26... Qd5
{[%clk 0:03:37.7]} 27. f3 {[%clk 0:02:25.9]} 27... Rfe8 {[%clk 0:03:32.4]} 28.
hxg6 {[%clk 0:02:22.6]} 28... hxg6 {[%clk 0:03:31.2]} 29. Qg4 {[%clk 0:02:15.1]}
29... Bd7 {[%clk 0:03:27]} 30. Qg2 {[%clk 0:02:12.9]} 30... Re3 {[%clk
0:03:21.1]} 31. Rd1 {[%clk 0:02:10]} 31... Qc5 {[%clk 0:03:16]} 32. Kh1 {[%clk
0:02:05.9]} 32... Bc6 {[%clk 0:03:13.4]} 33. Bd3 {[%clk 0:02:03.1]} 33... Qh5
{[%clk 0:02:57.8]} 34. Be4 {[%clk 0:01:57.8]} 34... Bxe4 {[%clk 0:02:43.4]} 35.
Rd7+ {[%clk 0:01:55]} 35... Kh6 {[%clk 0:02:40.7]} 36. fxe4 {[%clk 0:01:49.2]}
36... Rxh3+ {[%clk 0:02:38.3]} 37. Kg1 {[%clk 0:01:47.9]} 37... Qc5+ {[%clk
0:02:35.5]} 38. Qf2 {[%clk 0:01:43.5]} 38... Qg5+ {[%clk 0:02:32.3]} 39. Qg2
{[%clk 0:01:41.7]} 39... Rg3 {[%clk 0:02:31.2]} 0-1